Workbook

Sheet DCA
B1: DVA VALOR PROMEDIO | K1: First Row | L1: 10
A2: Inicio Inversion | B2: 2018-01-01 | K2: Last Row | L2: 14
A3: Inversion mensual | B3: 1000
A4: Ultima Compra | B4: 2018-03-01
A5: Proxima compra | B5: =TRUNC(NOW()) -> 2018-03-24
A6: Numero de compras | B6: 1
A7: Valor Portafolio | B7: =F14 -> 0
A9: Tique ETF | B9: Nombre ETF | C9: Precio (U$D) | D9: Unidades Actuales | E9: Porcentaje Objetivo | F9: Valor Actual | G9: Unidades a comprar | H9: Total a pagar | I9: Total a pagar | J9: Unidades a comprar | K9: Aux 1 | L9: Current allocation | M9: Next allocation
A10: SPY | B10: SPDR S&P 500 ETF Trust | C10: 275.95 | D10: 0 | E10: 0.4 | F10: =C10*D10 -> 0 | G10: =ROUND(K10/C10,0) -> 1 | H10: =$B$3*E10 -> 400 | I10: =C10*G10 -> 275.95 | J10: 2 | K10: =($B$6*$B$3)*E10 - (C10*D10) -> 400 | L10: =F10/$B$7 ->  | M10: =(F10+I10)/($B$7+$B$3) -> 0.27595
A11: VBR | B11: Vanguard Small-Cap Value ETF | C11: 132.86 | D11: 0 | E11: 0.25 | F11: =C11*D11 -> 0 | G11: =ROUND(K11/C11,0) -> 2 | H11: =$B$3*E11 -> 250 | I11: =C11*G11 -> 265.72 | J11: 2 | K11: =($B$6*$B$3)*E11 - (C11*D11) -> 250 | L11: =F11/$B$7 ->  | M11: =(F11+I11)/($B$7+$B$3) -> 0.26572
A12: VNQ | B12: Vanguard Real Estate ETF | C12: 75.86 | D12: 0 | E12: 0.15 | F12: 0 | G12: =ROUND(K12/C12,0) -> 2 | H12: 150 | I12: =C12*G12 -> 151.72 | J12: 2 | K12: 150 | M12: 0.15172
A13: TLT | B13: iShares 20+ Year Treasury Bond ETF | C13: 120.11 | D13: 0 | E13: 0.2 | F13: 0 | G13: =ROUND(K13/C13,0) -> 2 | H13: 200 | I13: =C13*G13 -> 240.22 | J13: 2 | K13: 200 | M13: 0.24022
D14: Total: | E14: =SUM(E10:OFFSET(E14,-1,0)) -> 1 | F14: =SUM(F10:OFFSET(F14,-1,0)) -> 0 | H14: =SUM(H10:H13) -> 1000 | I14: =SUM(I10:OFFSET(I14,-1,0)) -> 933.61
